[Event "Titled Tuesday Blitz November 07 Early 2023"]
[White "Le, Quang Liem"]
[Black "Melkumyan, Hrant"]
[WhiteFideId "12401137"]
[BlackFideId "13302485"]
[WhiteElo "3066"]
[BlackElo "2914"]
[Result "1-0"]
[Round "9"]
[TimeControl "180+1"]
[Date "2023.11.07"]
[WhiteClock "0:00:05"]
[BlackClock "0:00:01"]
[Board "3"]

1. Nf3 {[%clk 0:03:00]}  d5 {[%clk 0:02:58]} 2. e3 {[%clk 0:03:01]}  Nf6 {[%clk 0:02:56]} 3. c4 {[%clk 0:03:01]}  e6 {[%clk 0:02:56]} 4. b3 {[%clk 0:03:02]}  c5 {[%clk 0:02:51]} 5. Bb2 {[%clk 0:03:01]}  Nc6 {[%clk 0:02:51]} 6. cxd5 {[%clk 0:02:58]}  exd5 {[%clk 0:02:49]} 7. Bb5 {[%clk 0:02:58]}  Bd7 {[%clk 0:02:45]} 8. O-O {[%clk 0:02:54]}  Be7 {[%clk 0:02:45]} 9. d4 {[%clk 0:02:47]}  cxd4 {[%clk 0:02:45]} 10. Nxd4 {[%clk 0:02:48]}  O-O {[%clk 0:02:41]} 11. Nc3 {[%clk 0:02:46]}  Ne5 {[%clk 0:02:31]} 12. Rc1 {[%clk 0:02:36]}  a6 {[%clk 0:02:27]} 13. Bxd7 {[%clk 0:02:33]}  Qxd7 {[%clk 0:02:28]} 14. Na4 {[%clk 0:02:27]}  Rac8 {[%clk 0:02:02]} 15. Rxc8 {[%clk 0:02:09]}  Qxc8 {[%clk 0:02:01]} 16. Qb1 {[%clk 0:02:00]}  Re8 {[%clk 0:01:49]} 17. Rc1 {[%clk 0:01:58]}  Qd8 {[%clk 0:01:38]} 18. Qf5 {[%clk 0:01:51]}  Bd6 {[%clk 0:01:34]} 19. h3 {[%clk 0:01:39]}  Ne4 {[%clk 0:01:29]} 20. Qh5 {[%clk 0:01:05]}  Nd3 {[%clk 0:01:23]} 21. Rc2 {[%clk 0:01:05]}  b5 {[%clk 0:01:04]} 22. Nc3 {[%clk 0:01:01]}  Re5 {[%clk 0:00:46]} 23. Qe2 {[%clk 0:00:17]}  Ndxf2 {[%clk 0:00:44]} 24. Nxe4 {[%clk 0:00:14]}  Nxe4 {[%clk 0:00:41]} 25. Nc6 {[%clk 0:00:14]}  Ng3 {[%clk 0:00:26]} 26. Qf3 {[%clk 0:00:15]}  Rxe3 {[%clk 0:00:07]} 27. Qxe3 {[%clk 0:00:16]}  Qd7 {[%clk 0:00:06]} 28. Ne5 {[%clk 0:00:15]}  Qf5 {[%clk 0:00:04]} 29. Qd3 {[%clk 0:00:09]}  Ne4 {[%clk 0:00:02]} 30. Nf3 {[%clk 0:00:07]}  h6 {[%clk 0:00:01]} 31. Bd4 {[%clk 0:00:06]}  f6 {[%clk 0:00:02]} 32. Rc6 {[%clk 0:00:06]}  Bf4 {[%clk 0:00:02]} 33. Rxa6 {[%clk 0:00:05]}  Qg6 {[%clk 0:00:02]} 34. Ra8+ {[%clk 0:00:05]}  Kh7 {[%clk 0:00:02]} 35. Be3 {[%clk 0:00:05]}  Bd6 {[%clk 0:00:01]} 36. Qxd5 {[%clk 0:00:05]}  Bg3 {[%clk 0:00:01]} 37. Qg8# {[%clk 0:00:05]} 1-0


[Site "https://www.chess.com"]

[Event "Titled Tuesday Blitz November 07 Early 2023"]
[White "Nyzhnyk, Illya"]
[Black "Martinez Alcantara, Jose Eduardo"]
[WhiteFideId "14118084"]
[BlackFideId "3805662"]
[WhiteElo "2875"]
[BlackElo "3059"]
[Result "1-0"]
[Round "9"]
[TimeControl "180+1"]
[Date "2023.11.07"]
[WhiteClock "0:00:56"]
[BlackClock "0:00:00"]
[Board "4"]

1. e4 {[%clk 0:02:52]}  c5 {[%clk 0:02:59]} 2. Nf3 {[%clk 0:02:52]}  d6 {[%clk 0:02:57]} 3. g3 {[%clk 0:02:52]}  Nc6 {[%clk 0:02:56]} 4. Bg2 {[%clk 0:02:53]}  g6 {[%clk 0:02:56]} 5. O-O {[%clk 0:02:54]}  Bg7 {[%clk 0:02:57]} 6. c3 {[%clk 0:02:54]}  e5 {[%clk 0:02:58]} 7. Na3 {[%clk 0:02:54]}  Nge7 {[%clk 0:02:57]} 8. Nc2 {[%clk 0:02:55]}  O-O {[%clk 0:02:56]} 9. d4 {[%clk 0:02:55]}  exd4 {[%clk 0:02:56]} 10. cxd4 {[%clk 0:02:56]}  Bg4 {[%clk 0:02:56]} 11. d5 {[%clk 0:02:54]}  Ne5 {[%clk 0:02:46]} 12. Bf4 {[%clk 0:02:47]}  Nc8 {[%clk 0:02:43]} 13. Bxe5 {[%clk 0:02:44]}  Bxe5 {[%clk 0:02:41]} 14. h3 {[%clk 0:02:45]}  Bxf3 {[%clk 0:02:41]} 15. Qxf3 {[%clk 0:02:45]}  Nb6 {[%clk 0:02:30]} 16. Rab1 {[%clk 0:02:44]}  Nc4 {[%clk 0:02:30]} 17. Qe2 {[%clk 0:02:43]}  Nxb2 {[%clk 0:01:44]} 18. Ne3 {[%clk 0:02:43]}  Na4 {[%clk 0:01:42]} 19. Rxb7 {[%clk 0:02:44]}  Rb8 {[%clk 0:01:38]} 20. Rxa7 {[%clk 0:02:41]}  Nc3 {[%clk 0:01:38]} 21. Qd3 {[%clk 0:02:40]}  Bd4 {[%clk 0:01:33]} 22. Nc4 {[%clk 0:02:37]}  Re8 {[%clk 0:01:14]} 23. Kh2 {[%clk 0:02:36]}  Re7 {[%clk 0:01:14]} 24. Ra3 {[%clk 0:02:32]}  Nb5 {[%clk 0:00:59]} 25. Rb3 {[%clk 0:02:33]}  Na7 {[%clk 0:01:00]} 26. f4 {[%clk 0:02:31]}  Rxb3 {[%clk 0:00:59]} 27. axb3 {[%clk 0:02:32]}  f6 {[%clk 0:00:53]} 28. b4 {[%clk 0:02:25]}  Nc8 {[%clk 0:00:42]} 29. Na5 {[%clk 0:02:22]}  Na7 {[%clk 0:00:39]} 30. Nb3 {[%clk 0:02:22]}  Qb6 {[%clk 0:00:36]} 31. bxc5 {[%clk 0:02:21]}  Bxc5 {[%clk 0:00:36]} 32. e5 {[%clk 0:02:18]}  fxe5 {[%clk 0:00:29]} 33. fxe5 {[%clk 0:02:18]}  Rxe5 {[%clk 0:00:30]} 34. Nxc5 {[%clk 0:01:49]}  Qxc5 {[%clk 0:00:30]} 35. g4 {[%clk 0:01:41]}  Qc7 {[%clk 0:00:25]} 36. Qf3 {[%clk 0:01:37]}  Qe7 {[%clk 0:00:23]} 37. Qb3 {[%clk 0:01:33]}  Qc7 {[%clk 0:00:21]} 38. Ra1 {[%clk 0:01:28]}  Re7 {[%clk 0:00:19]} 39. g5 {[%clk 0:01:25]}  Rf7 {[%clk 0:00:14]} 40. Qe3 {[%clk 0:01:19]}  Re7 {[%clk 0:00:09]} 41. Qd4 {[%clk 0:01:16]}  Nc8 {[%clk 0:00:08]} 42. Ra8 {[%clk 0:01:09]}  Qb7 {[%clk 0:00:08]} 43. Qa4 {[%clk 0:01:06]}  Kg7 {[%clk 0:00:06]} 44. Qa1+ {[%clk 0:01:06]}  Kf7 {[%clk 0:00:05]} 45. Qf6+ {[%clk 0:01:05]}  Ke8 {[%clk 0:00:02]} 46. Ra2 {[%clk 0:00:58]}  Qc7 {[%clk 0:00:02]} 47. Qh8+ {[%clk 0:00:55]}  Kd7 {[%clk 0:00:00]} 48. Bf3 {[%clk 0:00:56]} 1-0


[Site "https://www.chess.com"]

[Event "Titled Tuesday Blitz November 07 Early 2023"]
[White "Carlsen, Magnus"]
[Black "Sychev, Klementy"]
[WhiteFideId "1503014"]
[BlackFideId "4114060"]
[WhiteElo "3259"]
[BlackElo "2863"]
[Result "1-0"]
[Round "9"]
[TimeControl "180+1"]
[Date "2023.11.07"]
[WhiteClock "0:00:32"]
[BlackClock "0:00:01"]
[Board "5"]

1. e4 {[%clk 0:02:56]}  e5 {[%clk 0:03:00]} 2. f4 {[%clk 0:02:55]}  exf4 {[%clk 0:02:58]} 3. Nc3 {[%clk 0:02:51]}  Qh4+ {[%clk 0:02:53]} 4. Ke2 {[%clk 0:02:51]}  d5 {[%clk 0:02:53]} 5. Nf3 {[%clk 0:02:49]}  Bg4 {[%clk 0:02:52]} 6. Nxd5 {[%clk 0:02:37]}  Nc6 {[%clk 0:02:52]} 7. Nxc7+ {[%clk 0:02:37]}  Kd8 {[%clk 0:02:45]} 8. Nxa8 {[%clk 0:02:36]}  Ne5 {[%clk 0:02:42]} 9. Qe1 {[%clk 0:02:30]}  Nxf3 {[%clk 0:02:40]} 10. Qxh4+ {[%clk 0:02:30]}  Nxh4+ {[%clk 0:02:40]} 11. Ke1 {[%clk 0:02:27]}  Nf6 {[%clk 0:01:44]} 12. e5 {[%clk 0:02:16]}  Ne4 {[%clk 0:01:18]} 13. d3 {[%clk 0:02:14]}  Bb4+ {[%clk 0:01:15]} 14. c3 {[%clk 0:02:13]}  Nxc3 {[%clk 0:00:57]} 15. a3 {[%clk 0:02:13]}  Ba5 {[%clk 0:00:54]} 16. Bd2 {[%clk 0:02:13]}  f3 {[%clk 0:00:48]} 17. g3 {[%clk 0:01:03]}  Ng2+ {[%clk 0:00:25]} 18. Bxg2 {[%clk 0:01:03]}  fxg2 {[%clk 0:00:25]} 19. Rg1 {[%clk 0:01:04]}  Bh3 {[%clk 0:00:20]} 20. Bxc3 {[%clk 0:01:00]}  Bxc3+ {[%clk 0:00:20]} 21. bxc3 {[%clk 0:01:01]}  Kd7 {[%clk 0:00:20]} 22. Rb1 {[%clk 0:01:00]}  Kc6 {[%clk 0:00:19]} 23. Rb4 {[%clk 0:01:00]}  Rxa8 {[%clk 0:00:17]} 24. Rc4+ {[%clk 0:00:59]}  Kd5 {[%clk 0:00:16]} 25. Rh4 {[%clk 0:00:59]}  Bf5 {[%clk 0:00:16]} 26. Rxg2 {[%clk 0:00:52]}  Kxe5 {[%clk 0:00:16]} 27. Re2+ {[%clk 0:00:52]}  Kf6 {[%clk 0:00:16]} 28. Rd4 {[%clk 0:00:49]}  Rc8 {[%clk 0:00:16]} 29. Rd6+ {[%clk 0:00:49]}  Be6 {[%clk 0:00:15]} 30. Kd2 {[%clk 0:00:48]}  Rc5 {[%clk 0:00:15]} 31. a4 {[%clk 0:00:47]}  Rh5 {[%clk 0:00:14]} 32. h4 {[%clk 0:00:45]}  Ra5 {[%clk 0:00:14]} 33. Rd4 {[%clk 0:00:45]}  a6 {[%clk 0:00:12]} 34. Rb4 {[%clk 0:00:45]}  h6 {[%clk 0:00:11]} 35. c4 {[%clk 0:00:40]}  g5 {[%clk 0:00:08]} 36. hxg5+ {[%clk 0:00:41]}  Kxg5 {[%clk 0:00:06]} 37. d4 {[%clk 0:00:39]}  Bd7 {[%clk 0:00:03]} 38. Rxb7 {[%clk 0:00:38]}  Bxa4 {[%clk 0:00:02]} 39. Rxf7 {[%clk 0:00:35]}  Kg4 {[%clk 0:00:01]} 40. Rg7+ {[%clk 0:00:31]}  Kf3 {[%clk 0:00:01]} 41. Re3+ {[%clk 0:00:31]}  Kf2 {[%clk 0:00:01]} 42. Rf7+ {[%clk 0:00:31]}  Kg2 {[%clk 0:00:02]} 43. Re5 {[%clk 0:00:31]}  Rxe5 {[%clk 0:00:01]} 44. dxe5 {[%clk 0:00:32]} 1-0


[Site "https://www.chess.com"]

[Event "Titled Tuesday Blitz November 07 Early 2023"]
[White "Navara, David"]
[Black "Andreikin, Dmitry"]
[WhiteFideId "309095"]
[BlackFideId "4158814"]
[WhiteElo "2933"]
[BlackElo "3112"]
[Result "1/2-1/2"]
[Round "9"]
[TimeControl "180+1"]
[Date "2023.11.07"]
[WhiteClock "0:00:48"]
[BlackClock "0:01:12"]
[Board "6"]

1. d4 {[%clk 0:03:00]}  Nf6 {[%clk 0:02:56]} 2. c4 {[%clk 0:03:01]}  e6 {[%clk 0:02:52]} 3. Nc3 {[%clk 0:03:01]}  d5 {[%clk 0:02:49]} 4. cxd5 {[%clk 0:03:02]}  exd5 {[%clk 0:02:49]} 5. Bg5 {[%clk 0:03:02]}  c6 {[%clk 0:02:47]} 6. e3 {[%clk 0:03:03]}  Bf5 {[%clk 0:02:44]} 7. Qf3 {[%clk 0:03:03]}  h6 {[%clk 0:02:44]} 8. Bh4 {[%clk 0:02:59]}  Bh7 {[%clk 0:02:44]} 9. Bxf6 {[%clk 0:02:59]}  Qxf6 {[%clk 0:02:44]} 10. Qxf6 {[%clk 0:02:59]}  gxf6 {[%clk 0:02:45]} 11. Nf3 {[%clk 0:02:55]}  Nd7 {[%clk 0:02:46]} 12. Nh4 {[%clk 0:02:54]}  Be7 {[%clk 0:02:43]} 13. g3 {[%clk 0:02:52]}  Nb6 {[%clk 0:02:43]} 14. O-O-O {[%clk 0:02:46]}  f5 {[%clk 0:02:41]} 15. Ng2 {[%clk 0:02:33]}  Nc8 {[%clk 0:02:40]} 16. Nf4 {[%clk 0:02:31]}  Nd6 {[%clk 0:02:40]} 17. f3 {[%clk 0:02:27]}  Bg5 {[%clk 0:02:37]} 18. Bd3 {[%clk 0:02:23]}  Kd7 {[%clk 0:02:33]} 19. Rde1 {[%clk 0:02:19]}  Rae8 {[%clk 0:02:33]} 20. Kd2 {[%clk 0:02:13]}  Re7 {[%clk 0:02:26]} 21. Nh5 {[%clk 0:02:10]}  Ree8 {[%clk 0:02:24]} 22. b3 {[%clk 0:02:05]}  Bg6 {[%clk 0:02:22]} 23. Nf4 {[%clk 0:02:06]}  h5 {[%clk 0:02:15]} 24. h4 {[%clk 0:02:02]}  Bh6 {[%clk 0:02:15]} 25. Bc2 {[%clk 0:01:49]}  Re7 {[%clk 0:02:12]} 26. Ke2 {[%clk 0:01:30]}  Rhe8 {[%clk 0:01:59]} 27. Kf2 {[%clk 0:01:30]}  Bg7 {[%clk 0:01:59]} 28. Re2 {[%clk 0:01:23]}  a5 {[%clk 0:01:52]} 29. Rhe1 {[%clk 0:01:21]}  Bh6 {[%clk 0:01:44]} 30. Na4 {[%clk 0:01:17]}  Kc7 {[%clk 0:01:43]} 31. Bd3 {[%clk 0:01:05]}  Bg7 {[%clk 0:01:20]} 32. Nc3 {[%clk 0:01:01]}  Kb8 {[%clk 0:01:17]} 33. Na4 {[%clk 0:00:57]}  Kc7 {[%clk 0:01:16]} 34. Nc3 {[%clk 0:00:53]}  Kb8 {[%clk 0:01:16]} 35. Bb1 {[%clk 0:00:49]}  Bh6 {[%clk 0:01:12]} 36. Bd3 {[%clk 0:00:48]}  Bg7 {[%clk 0:01:12]} 1/2-1/2


[Site "https://www.chess.com"]

[Event "Titled Tuesday Blitz November 07 Early 2023"]
[White "Steinberg, Nitzan"]
[Black "Xiong, Jeffery"]
[WhiteFideId "2801795"]
[BlackFideId "2047640"]
[WhiteElo "2896"]
[BlackElo "3011"]
[Result "0-1"]
[Round "9"]
[TimeControl "180+1"]
[Date "2023.11.07"]
[WhiteClock "0:00:00"]
[BlackClock "0:00:50"]
[Board "7"]

1. e4 {[%clk 0:03:00]}  e5 {[%clk 0:02:57]} 2. Nf3 {[%clk 0:03:01]}  Nc6 {[%clk 0:02:58]} 3. Bb5 {[%clk 0:03:01]}  Nf6 {[%clk 0:02:58]} 4. O-O {[%clk 0:03:00]}  Nxe4 {[%clk 0:02:58]} 5. Re1 {[%clk 0:03:00]}  Nd6 {[%clk 0:02:58]} 6. Nxe5 {[%clk 0:03:01]}  Be7 {[%clk 0:02:58]} 7. Bf1 {[%clk 0:03:01]}  Nf5 {[%clk 0:02:58]} 8. d4 {[%clk 0:03:00]}  Nfxd4 {[%clk 0:02:50]} 9. c3 {[%clk 0:02:45]}  Ne6 {[%clk 0:02:47]} 10. Nxc6 {[%clk 0:02:44]}  dxc6 {[%clk 0:02:45]} 11. Qf3 {[%clk 0:02:40]}  O-O {[%clk 0:02:44]} 12. Nd2 {[%clk 0:02:38]}  Bg5 {[%clk 0:02:35]} 13. Nc4 {[%clk 0:02:26]}  Bxc1 {[%clk 0:02:36]} 14. Raxc1 {[%clk 0:02:27]}  Bd7 {[%clk 0:02:30]} 15. Rcd1 {[%clk 0:02:26]}  Qe7 {[%clk 0:02:30]} 16. Qe3 {[%clk 0:02:18]}  Rfd8 {[%clk 0:02:24]} 17. g3 {[%clk 0:02:05]}  Qc5 {[%clk 0:02:14]} 18. Qc1 {[%clk 0:01:49]}  Be8 {[%clk 0:02:08]} 19. b4 {[%clk 0:01:42]}  Rxd1 {[%clk 0:02:06]} 20. Qxd1 {[%clk 0:01:36]}  Qd5 {[%clk 0:02:03]} 21. Qe2 {[%clk 0:01:29]}  Rd8 {[%clk 0:02:02]} 22. Qe3 {[%clk 0:01:25]}  b6 {[%clk 0:02:02]} 23. h4 {[%clk 0:01:21]}  c5 {[%clk 0:02:02]} 24. Ne5 {[%clk 0:01:08]}  cxb4 {[%clk 0:02:02]} 25. Bc4 {[%clk 0:01:03]}  Qd2 {[%clk 0:01:51]} 26. cxb4 {[%clk 0:01:00]}  Qxe3 {[%clk 0:01:40]} 27. Rxe3 {[%clk 0:00:59]}  Rd4 {[%clk 0:01:41]} 28. a3 {[%clk 0:00:54]}  Nd8 {[%clk 0:01:35]} 29. Bb3 {[%clk 0:00:32]}  Kf8 {[%clk 0:01:34]} 30. Rc3 {[%clk 0:00:31]}  c6 {[%clk 0:01:33]} 31. Kf1 {[%clk 0:00:30]}  f6 {[%clk 0:01:33]} 32. Nf3 {[%clk 0:00:29]}  Rd6 {[%clk 0:01:33]} 33. Ke2 {[%clk 0:00:26]}  Ne6 {[%clk 0:01:17]} 34. Ke3 {[%clk 0:00:25]}  c5 {[%clk 0:01:17]} 35. Rd3 {[%clk 0:00:15]}  Rxd3+ {[%clk 0:01:15]} 36. Kxd3 {[%clk 0:00:15]}  Ke7 {[%clk 0:01:16]} 37. Kc3 {[%clk 0:00:10]}  cxb4+ {[%clk 0:01:15]} 38. axb4 {[%clk 0:00:10]}  a5 {[%clk 0:01:16]} 39. bxa5 {[%clk 0:00:10]}  bxa5 {[%clk 0:01:17]} 40. Nd2 {[%clk 0:00:07]}  Nc5 {[%clk 0:01:17]} 41. Bc2 {[%clk 0:00:07]}  Bg6 {[%clk 0:01:16]} 42. Bxg6 {[%clk 0:00:05]}  hxg6 {[%clk 0:01:17]} 43. f3 {[%clk 0:00:04]}  Ke6 {[%clk 0:01:02]} 44. Nc4 {[%clk 0:00:05]}  a4 {[%clk 0:01:02]} 45. Kb4 {[%clk 0:00:04]}  Kd5 {[%clk 0:00:59]} 46. Nb6+ {[%clk 0:00:02]}  Kd4 {[%clk 0:01:00]} 47. Nc8 {[%clk 0:00:03]}  Ke3 {[%clk 0:00:55]} 48. Ne7 {[%clk 0:00:01]}  Kxf3 {[%clk 0:00:54]} 49. Nxg6 {[%clk 0:00:02]}  Kxg3 {[%clk 0:00:54]} 50. h5 {[%clk 0:00:02]}  Kg4 {[%clk 0:00:54]} 51. Ne7 {[%clk 0:00:01]}  Kxh5 {[%clk 0:00:52]} 52. Nf5 {[%clk 0:00:00]}  Kg6 {[%clk 0:00:50]} 0-1


[Site "https://www.chess.com"]

[Event "Titled Tuesday Blitz November 07 Early 2023"]
[White "Kazakouski, Valery"]
[Black "Oparin, Grigoriy"]
[WhiteFideId "13507443"]
[BlackFideId "24125890"]
[WhiteElo "2895"]
[BlackElo "2997"]
[Result "0-1"]
[Round "9"]
[TimeControl "180+1"]
[Date "2023.11.07"]
[WhiteClock "0:00:00"]
[BlackClock "0:00:12"]
[Board "8"]

1. Nf3 {[%clk 0:03:00]}  Nf6 {[%clk 0:02:59]} 2. c4 {[%clk 0:03:01]}  b6 {[%clk 0:02:59]} 3. g3 {[%clk 0:03:01]}  Bb7 {[%clk 0:02:59]} 4. Bg2 {[%clk 0:03:01]}  c5 {[%clk 0:03:00]} 5. O-O {[%clk 0:03:01]}  g6 {[%clk 0:03:00]} 6. b3 {[%clk 0:03:00]}  Bg7 {[%clk 0:03:00]} 7. Bb2 {[%clk 0:03:01]}  O-O {[%clk 0:03:01]} 8. d4 {[%clk 0:03:01]}  e6 {[%clk 0:02:58]} 9. Nc3 {[%clk 0:02:51]}  Ne4 {[%clk 0:02:57]} 10. Qd3 {[%clk 0:02:33]}  f5 {[%clk 0:02:41]} 11. Rad1 {[%clk 0:02:25]}  Na6 {[%clk 0:02:41]} 12. Qb1 {[%clk 0:02:17]}  Qe7 {[%clk 0:02:30]} 13. e3 {[%clk 0:02:17]}  d6 {[%clk 0:02:25]} 14. Qa1 {[%clk 0:02:07]}  Rad8 {[%clk 0:02:21]} 15. Nb5 {[%clk 0:02:05]}  Ba8 {[%clk 0:02:01]} 16. Nd2 {[%clk 0:01:54]}  Nb4 {[%clk 0:01:51]} 17. Nxe4 {[%clk 0:01:37]}  fxe4 {[%clk 0:01:52]} 18. dxc5 {[%clk 0:01:33]}  Bxb2 {[%clk 0:01:52]} 19. Qxb2 {[%clk 0:01:33]}  bxc5 {[%clk 0:01:50]} 20. Nc3 {[%clk 0:01:14]}  d5 {[%clk 0:01:50]} 21. a3 {[%clk 0:01:14]}  Nd3 {[%clk 0:01:51]} 22. Qc2 {[%clk 0:01:14]}  Ne5 {[%clk 0:01:47]} 23. cxd5 {[%clk 0:01:11]}  exd5 {[%clk 0:01:48]} 24. Na4 {[%clk 0:01:11]}  Rc8 {[%clk 0:01:45]} 25. Qc3 {[%clk 0:01:06]}  Nf3+ {[%clk 0:01:34]} 26. Kh1 {[%clk 0:01:04]}  Bb7 {[%clk 0:01:31]} 27. Rc1 {[%clk 0:01:04]}  Ba6 {[%clk 0:01:15]} 28. Rfd1 {[%clk 0:01:04]}  d4 {[%clk 0:01:15]} 29. Qb2 {[%clk 0:00:33]}  d3 {[%clk 0:01:11]} 30. Rc3 {[%clk 0:00:25]}  Rf5 {[%clk 0:01:07]} 31. Rdc1 {[%clk 0:00:21]}  Bb5 {[%clk 0:01:03]} 32. Qa2 {[%clk 0:00:16]}  Bxa4 {[%clk 0:00:59]} 33. bxa4+ {[%clk 0:00:17]}  Kg7 {[%clk 0:00:58]} 34. Qb2 {[%clk 0:00:16]}  Kh6 {[%clk 0:00:57]} 35. Rc4 {[%clk 0:00:15]}  Qe6 {[%clk 0:00:48]} 36. Qc3 {[%clk 0:00:14]}  Rh5 {[%clk 0:00:34]} 37. Bxf3 {[%clk 0:00:08]}  exf3 {[%clk 0:00:35]} 38. g4 {[%clk 0:00:08]}  Rd5 {[%clk 0:00:23]} 39. Rd1 {[%clk 0:00:05]}  d2 {[%clk 0:00:21]} 40. Rf4 {[%clk 0:00:03]}  Rcd8 {[%clk 0:00:17]} 41. h3 {[%clk 0:00:03]}  Rd3 {[%clk 0:00:14]} 42. Qxc5 {[%clk 0:00:04]}  Qb3 {[%clk 0:00:13]} 43. g5+ {[%clk 0:00:03]}  Kh5 {[%clk 0:00:13]} 44. Rh4+ {[%clk 0:00:01]}  Kxh4 {[%clk 0:00:13]} 45. Rg1 {[%clk 0:00:00]}  d1=Q {[%clk 0:00:12]} 0-1


[Site "https://www.chess.com"]

[Event "Titled Tuesday Blitz November 07 Early 2023"]
[White "Aradhya, Garg"]
[Black "Rostovtsev, Dmitry"]
[WhiteFideId "25006746"]
[BlackFideId "34278320"]
[WhiteElo "2738"]
[BlackElo "2943"]
[Result "1-0"]
[Round "9"]
[TimeControl "180+1"]
[Date "2023.11.07"]
[WhiteClock "0:01:33"]
[BlackClock "0:00:08"]
[Board "10"]

1. d4 {[%clk 0:03:00]}  Nf6 {[%clk 0:02:59]} 2. c4 {[%clk 0:03:01]}  e6 {[%clk 0:02:40]} 3. Nf3 {[%clk 0:03:01]}  d5 {[%clk 0:02:39]} 4. Nc3 {[%clk 0:03:01]}  h6 {[%clk 0:02:39]} 5. g3 {[%clk 0:02:59]}  Bd6 {[%clk 0:02:38]} 6. Bg2 {[%clk 0:02:59]}  O-O {[%clk 0:02:38]} 7. O-O {[%clk 0:02:59]}  Nc6 {[%clk 0:02:26]} 8. b3 {[%clk 0:02:53]}  dxc4 {[%clk 0:02:23]} 9. bxc4 {[%clk 0:02:53]}  e5 {[%clk 0:02:23]} 10. Rb1 {[%clk 0:02:53]}  exd4 {[%clk 0:02:13]} 11. Nxd4 {[%clk 0:02:52]}  Nxd4 {[%clk 0:02:14]} 12. Qxd4 {[%clk 0:02:52]}  Re8 {[%clk 0:02:15]} 13. Nb5 {[%clk 0:01:59]}  Rxe2 {[%clk 0:01:49]} 14. Be3 {[%clk 0:01:55]}  Qe7 {[%clk 0:01:33]} 15. Nc3 {[%clk 0:01:51]}  Rxe3 {[%clk 0:01:05]} 16. Qxe3 {[%clk 0:01:51]}  Qxe3 {[%clk 0:01:04]} 17. fxe3 {[%clk 0:01:51]}  c6 {[%clk 0:00:46]} 18. Rfd1 {[%clk 0:01:48]}  Be7 {[%clk 0:00:45]} 19. Ne4 {[%clk 0:01:43]}  Nxe4 {[%clk 0:00:44]} 20. Bxe4 {[%clk 0:01:44]}  Kf8 {[%clk 0:00:43]} 21. Rb3 {[%clk 0:01:43]}  Ke8 {[%clk 0:00:41]} 22. Kf2 {[%clk 0:01:41]}  Bc5 {[%clk 0:00:38]} 23. Rdb1 {[%clk 0:01:39]}  Ke7 {[%clk 0:00:28]} 24. Rxb7+ {[%clk 0:01:38]}  Bxb7 {[%clk 0:00:27]} 25. Rxb7+ {[%clk 0:01:39]}  Kd6 {[%clk 0:00:21]} 26. Rxf7 {[%clk 0:01:38]}  Re8 {[%clk 0:00:21]} 27. Kf3 {[%clk 0:01:38]}  Re7 {[%clk 0:00:18]} 28. Rxe7 {[%clk 0:01:38]}  Kxe7 {[%clk 0:00:18]} 29. Bxc6 {[%clk 0:01:39]}  Ke6 {[%clk 0:00:14]} 30. Ke4 {[%clk 0:01:38]}  a5 {[%clk 0:00:14]} 31. Bd5+ {[%clk 0:01:38]}  Kf6 {[%clk 0:00:10]} 32. h4 {[%clk 0:01:38]}  g5 {[%clk 0:00:10]} 33. h5 {[%clk 0:01:38]}  g4 {[%clk 0:00:06]} 34. Kf4 {[%clk 0:01:38]}  Bd6+ {[%clk 0:00:01]} 35. Kxg4 {[%clk 0:01:38]}  Ke5 {[%clk 0:00:02]} 36. a4 {[%clk 0:01:36]}  Be7 {[%clk 0:00:02]} 37. Kf3 {[%clk 0:01:36]}  Bc5 {[%clk 0:00:02]} 38. g4 {[%clk 0:01:36]}  Be7 {[%clk 0:00:02]} 39. Bg8 {[%clk 0:01:35]}  Bd6 {[%clk 0:00:01]} 40. g5 {[%clk 0:01:33]}  hxg5 {[%clk 0:00:02]} 41. h6 {[%clk 0:01:33]}  Kf6 {[%clk 0:00:02]} 42. Kg4 {[%clk 0:01:31]}  Be5 {[%clk 0:00:01]} 43. c5 {[%clk 0:01:29]}  Ke7 {[%clk 0:00:01]} 44. Kxg5 {[%clk 0:01:29]}  Bh8 {[%clk 0:00:01]} 45. Kg6 {[%clk 0:01:29]}  Be5 {[%clk 0:00:01]} 46. Bd5 {[%clk 0:01:29]}  Bc3 {[%clk 0:00:01]} 47. e4 {[%clk 0:01:29]}  Be5 {[%clk 0:00:01]} 48. c6 {[%clk 0:01:30]}  Kd6 {[%clk 0:00:01]} 49. Kf7 {[%clk 0:01:30]}  Bf4 {[%clk 0:00:01]} 50. h7 {[%clk 0:01:30]}  Be5 {[%clk 0:00:02]} 51. Kg8 {[%clk 0:01:31]}  Bd4 {[%clk 0:00:03]} 52. h8=Q {[%clk 0:01:31]}  Bxh8 {[%clk 0:00:04]} 53. Kxh8 {[%clk 0:01:32]}  Kc5 {[%clk 0:00:04]} 54. Kg7 {[%clk 0:01:33]}  Kb4 {[%clk 0:00:05]} 55. c7 {[%clk 0:01:33]}  Ka3 {[%clk 0:00:06]} 56. c8=Q {[%clk 0:01:32]}  Kb2 {[%clk 0:00:07]} 57. Qc4 {[%clk 0:01:33]}  Ka1 {[%clk 0:00:08]} 58. Qa2# {[%clk 0:01:33]} 1-0


[Site "https://www.chess.com"]

[Event "Titled Tuesday Blitz November 07 Early 2023"]
[White "Nihal Sarin"]
[Black "Kamsky, Gata"]
[WhiteFideId "25092340"]
[BlackFideId "2000024"]
[WhiteElo "3101"]
[BlackElo "2857"]
[Result "1-0"]
[Round "9"]
[TimeControl "180+1"]
[Date "2023.11.07"]
[WhiteClock "0:00:21"]
[BlackClock "0:00:00"]
[Board "11"]

1. a3 {[%clk 0:03:00]}  d5 {[%clk 0:02:57]} 2. Nf3 {[%clk 0:03:00]}  Bf5 {[%clk 0:02:56]} 3. c4 {[%clk 0:02:59]}  e6 {[%clk 0:02:47]} 4. Qb3 {[%clk 0:02:59]}  b6 {[%clk 0:02:42]} 5. cxd5 {[%clk 0:02:54]}  exd5 {[%clk 0:02:42]} 6. Nc3 {[%clk 0:02:51]}  c6 {[%clk 0:02:35]} 7. e3 {[%clk 0:02:52]}  Nf6 {[%clk 0:02:35]} 8. Be2 {[%clk 0:02:50]}  Bd6 {[%clk 0:02:34]} 9. O-O {[%clk 0:02:51]}  O-O {[%clk 0:02:33]} 10. d3 {[%clk 0:02:45]}  h6 {[%clk 0:02:30]} 11. e4 {[%clk 0:02:34]}  dxe4 {[%clk 0:02:26]} 12. dxe4 {[%clk 0:02:35]}  Nxe4 {[%clk 0:02:24]} 13. Rd1 {[%clk 0:02:29]}  Qf6 {[%clk 0:02:20]} 14. Be3 {[%clk 0:02:25]}  Nxc3 {[%clk 0:02:13]} 15. bxc3 {[%clk 0:02:21]}  Nd7 {[%clk 0:02:09]} 16. Nd4 {[%clk 0:02:17]}  Nc5 {[%clk 0:01:58]} 17. Qb2 {[%clk 0:02:17]}  Bg6 {[%clk 0:01:54]} 18. a4 {[%clk 0:02:17]}  Rac8 {[%clk 0:01:49]} 19. Bf3 {[%clk 0:02:14]}  Be4 {[%clk 0:01:48]} 20. a5 {[%clk 0:02:10]}  b5 {[%clk 0:01:40]} 21. a6 {[%clk 0:02:09]}  Rfe8 {[%clk 0:01:32]} 22. h3 {[%clk 0:02:09]}  Qe5 {[%clk 0:01:31]} 23. g3 {[%clk 0:02:09]}  Qf6 {[%clk 0:01:24]} 24. Kg2 {[%clk 0:02:09]}  Be5 {[%clk 0:01:23]} 25. Qe2 {[%clk 0:02:00]}  Bxf3+ {[%clk 0:01:19]} 26. Qxf3 {[%clk 0:01:58]}  Na4 {[%clk 0:01:18]} 27. Qxf6 {[%clk 0:01:38]}  Bxf6 {[%clk 0:01:17]} 28. Nf5 {[%clk 0:01:39]}  Bxc3 {[%clk 0:01:07]} 29. Rac1 {[%clk 0:01:34]}  c5 {[%clk 0:00:56]} 30. Nd6 {[%clk 0:01:31]}  b4 {[%clk 0:00:53]} 31. Nxe8 {[%clk 0:01:31]}  Rxe8 {[%clk 0:00:52]} 32. Rd7 {[%clk 0:01:32]}  b3 {[%clk 0:00:34]} 33. Rxa7 {[%clk 0:01:31]}  b2 {[%clk 0:00:34]} 34. Rb1 {[%clk 0:01:30]}  Re6 {[%clk 0:00:34]} 35. h4 {[%clk 0:01:06]}  h5 {[%clk 0:00:30]} 36. g4 {[%clk 0:00:55]}  hxg4 {[%clk 0:00:29]} 37. h5 {[%clk 0:00:56]}  Bb4 {[%clk 0:00:21]} 38. Rd1 {[%clk 0:00:27]}  Nc3 {[%clk 0:00:20]} 39. Rd8+ {[%clk 0:00:26]}  Kh7 {[%clk 0:00:20]} 40. Raa8 {[%clk 0:00:27]}  g5 {[%clk 0:00:00]} 41. Bxg5 {[%clk 0:00:21]} 1-0


[Site "https://www.chess.com"]